fUSD/lending_fUSD_20260129
["ID","MTS","AMOUNT","RATE_DAILY","PERIOD"]
[404016966,1769727032282,-200.0,0.00013998,2]
[404016967,1769727032291,-151.0,0.00013998,2]
[404016968,1769727032300,-151.0,0.00013998,2]
[404016969,1769727032311,-151.0,0.00013998,2]
[404016970,1769727032321,-151.0,0.00013998,2]
[404016971,1769727032332,-151.0,0.00013998,2]
[404016972,1769727032342,-151.0,0.00013998,2]
[404016973,1769727032351,-151.0,0.00013998,2]
[404016974,1769727032361,-64.50145272,0.00013998,2]
[404016975,1769727032372,-86.49854728,0.00013998,2]
[404016976,1769727032382,-151.0,0.00013998,2]
[404016977,1769727032391,-151.0,0.00013998,2]
[404016978,1769727032400,-151.0,0.00013998,2]
[404016979,1769727032409,-34.01435829,0.00013998,2]
[404016980,1769727032442,-168.74510061,0.00013998,2]
[404016981,1769727032451,-151.0,0.00014003,2]
[404016982,1769727032460,-421.37982551,0.00014005,2]
[404016983,1769727032473,-78.62017449,0.00014005,2]
[404016984,1769727032482,-252.39982551,0.00014005,2]
[404016987,1769727032510,-247.60017449,0.00014005,2]
[404016989,1769727032520,-500.0,0.00014005,2]
[404016991,1769727032529,-500.0,0.00014005,2]
[404016993,1769727032539,-536.52284781,0.00014005,2]
[404016995,1769727032548,-500.0,0.00014005,2]
[404016997,1769727032557,-500.0,0.00014005,2]
[404016999,1769727032566,-500.0,0.00014005,2]
[404017001,1769727032575,-500.0,0.00014005,2]
[404017003,1769727032584,-500.0,0.00014005,2]
[404017005,1769727032593,-500.0,0.00014005,2]
[404017007,1769727032602,-500.0,0.00014005,2]
[404017009,1769727032611,-500.0,0.00014005,2]
[404017011,1769727032620,-500.0,0.00014005,2]
[404017013,1769727032629,-500.0,0.00014005,2]
[404017015,1769727032639,-500.0,0.00014005,2]
[404017017,1769727032648,-500.0,0.00014005,2]
[404017019,1769727032657,-500.0,0.00014005,2]
[404017021,1769727032666,-500.0,0.00014005,2]
[404017023,1769727032675,-500.0,0.00014005,2]
[404017025,1769727032684,-226.27898001,0.00014005,2]
[404017027,1769727032693,-188686.81796786,0.00014006,2]
[404017029,1769727032704,-5893.84986279,0.00014006,2]
[404017055,1769727038256,-19448.32808573,0.00014006,2]
[404017056,1769727038290,-499.092,0.00014006,2]
[404017057,1769727038301,-1493.60340806,0.00014006,2]
[404017058,1769727038358,-139463.77649266,0.00014006,2]
[404017059,1769727038368,-6182.5543685,0.00014006,2]
[404017060,1769727038377,-10506.8336324,0.00014006,2]
[404017061,1769727038386,-11605.42950917,0.00014006,2]
[404017062,1769727038397,-1282.2401957,0.00014006,2]
[404017065,1769727038573,-18.86729603,0.00014006,2]
[404017066,1769727038679,-8289.0004346,0.00014006,2]
[404017067,1769727038689,-200.0,0.0001403,2]
[404017068,1769727038699,-500.0,0.0001403,2]
[404017069,1769727038708,-542.73706381,0.0001403,2]
[404017070,1769727038717,-500.0,0.0001403,2]
[404017071,1769727038727,-151.0,0.0001403,2]
[404017072,1769727038736,-151.0,0.0001403,2]
[404017073,1769727038746,-500.0,0.0001403,2]
[404017074,1769727038755,-500.0,0.0001403,2]
[404017075,1769727038764,-500.0,0.0001403,2]
[404017076,1769727038775,-338.59775169,0.0001403,2]
[404017083,1769727041079,-161.40224831,0.0001403,2]
[404017084,1769727041088,-300.52214556,0.0001403,2]
[404017085,1769727041100,-199.47785444,0.0001403,2]
[404017086,1769727041109,-500.0,0.0001403,2]
[404017087,1769727041120,-500.0,0.0001403,2]
[404017088,1769727041131,-500.0,0.0001403,2]
[404017089,1769727041140,-151.0,0.0001403,2]
[404017090,1769727041149,-151.0,0.0001403,2]
[404017091,1769727041159,-150.02,0.000141,2]
[404017092,1769727041169,-962.10431768,0.00014136,2]
[404017093,1769727041178,-500.0,0.00014137,2]
[404017094,1769727041188,-500.0,0.00014138,2]
[404017095,1769727041197,-500.0,0.00014138,2]
[404017096,1769727041206,-500.0,0.00014138,2]
[404017097,1769727041215,-500.0,0.00014138,2]
[404017098,1769727041225,-500.0,0.00014138,2]
[404017099,1769727041235,-500.0,0.00014138,2]
[404017100,1769727041245,-500.0,0.00014138,2]
[404017101,1769727041255,-500.0,0.00014138,2]
[404017102,1769727041263,-461.0,0.00014148,2]
[404017103,1769727041273,-200.0,0.0001417,2]
[404017104,1769727041282,-17477.38529414,0.00014187,2]
[404017105,1769727041293,-573.674504,0.00014187,2]
[404017106,1769727041314,-1790.09687237,0.00014187,2]
[404017107,1769727041346,-35372.28332949,0.00014187,2]
[404017108,1769727041356,-735.0,0.00014191,2]
[404017109,1769727041366,-5072.18,0.00014286,2]
[404017110,1769727041375,-33589.15,0.00014286,2]
[404017111,1769727041385,-367.64047656,0.00014288,2]
[404017112,1769727041394,-200.0,0.00014312,2]
[404017113,1769727041403,-1600.0,0.00014383,2]
[404017114,1769727041412,-2942.69,0.00014439,2]
[404017115,1769727041421,-1604.45514223,0.00014471,2]
[404017116,1769727041432,-3401.64,0.00014484,2]
[404017117,1769727041442,-164.57,0.00014486,2]
[404017118,1769727041453,-500.0,0.00014546,2]
[404017119,1769727041463,-304.52330776,0.00014546,2]
[404017120,1769727041474,-936.22610281,0.0001457,2]
[404017121,1769727041483,-968.88,0.00014618,2]
[404017122,1769727041492,-284.02,0.00014856,2]
[404017123,1769727041501,-500.0,0.00014904,2]
[404017124,1769727041510,-1738.18,0.0001499,2]
[404017125,1769727041520,-200.0,0.0001499,2]
[404017126,1769727041530,-1604.45514223,0.00015043,2]
[404017127,1769727041540,-2470.71549785,0.0001507,2]
[404017128,1769727041552,-500.0,0.00015094,2]
[404017129,1769727041561,-272.64,0.00015112,2]
[404017130,1769727041570,-255.0,0.00015116,2]
[404017131,1769727041579,-300.0,0.00015123,2]
[404017132,1769727041588,-195.0,0.00015123,2]
[404017133,1769727041596,-250.0,0.00015187,2]
[404017134,1769727041605,-195.0,0.00015187,2]
[404017135,1769727041614,-164.57,0.00015249,2]
[404017136,1769727041623,-300.0,0.0001526,2]
[404017137,1769727041632,-250.0,0.00015262,2]
[404017138,1769727041641,-968.88,0.00015314,2]
[404017139,1769727041650,-420.0,0.00015334,2]
[404017140,1769727041659,-216.20302183,0.00015383,2]
[404017141,1769727041668,-1680.0,0.00015396,2]
[404017142,1769727041677,-250.0,0.00015397,2]
[404017143,1769727041686,-166.68,0.0001544,2]
[404017144,1769727041695,-151.0,0.0001548,2]
[404017145,1769727041704,-500.0,0.00015482,2]
[404017146,1769727041713,-500.0,0.00015482,2]
[404017147,1769727041722,-338394.29069124,0.00015483,2]
[404017148,1769727041735,-4314.1106964,0.00015483,2]
[404017149,1769727042019,-12777.06642946,0.00015483,2]
[404017150,1769727042028,-21195.5374355,0.00015483,2]
[404017151,1769727042037,-152.459921,0.00015483,2]
[404017152,1769727042052,-151.0,0.00015483,2]
[404017153,1769727042063,-151.0,0.00015483,2]
[404017154,1769727042073,-161.628704,0.00015483,2]
[404017155,1769727042083,-151.39577,0.00015483,2]
[404017156,1769727042092,-151.39577,0.00015483,2]
[404017157,1769727042101,-151.39577,0.00015483,2]
[404017158,1769727042110,-151.39577,0.00015483,2]
[404017159,1769727042119,-150.26821108,0.0001549,2]
[404017160,1769727042129,-500.0,0.00015534,2]
[404017161,1769727042138,-151.0,0.00015567,2]
[404017162,1769727042148,-4358.63500148,0.0001557,2]
[404017163,1769727042158,-6520.25728937,0.0001557,2]
[404017164,1769727042167,-8822.1375,0.0001557,2]
[404017165,1769727042178,-1604.45514223,0.00015614,2]
[404017166,1769727042188,-1000.0,0.00015662,2]
[404017167,1769727042197,-2046.00885033,0.00015807,2]
[404017168,1769727042208,-234.25,0.00015856,7]
[404017169,1769727042218,-175.04278857,0.000159,2]
[404017170,1769727042227,-500.0,0.00015999,2]
[404017171,1769727042236,-335.82215158,0.00015999,2]
[404017172,1769727042245,-500.0,0.00015999,2]
[404017173,1769727042255,-217.05977135,0.00015999,2]
[404017174,1769727042265,-599.24627065,0.00015999,2]
[404017175,1769727042274,-500.0,0.00015999,2]
[404017176,1769727042284,-5951.08930474,0.00016,2]
[404017177,1769727042293,-20812.31448118,0.00016,4]
[404017178,1769727042305,-380.10142345,0.00016,4]
[404017179,1769727042316,-325.47403664,0.00016,4]
[404017180,1769727042371,-51373.06934359,0.00016,4]
[404017181,1769727042382,-38245.58965064,0.00016,2]
[404017182,1769727042395,-5710.45240655,0.00016,2]
[404017183,1769727042407,-509.65562623,0.00016,2]
[404017184,1769727042421,-1366.04222303,0.00016,2]
[404017185,1769727042442,-2920.3496127,0.00016,2]
[404017186,1769727042456,-10045.45113752,0.00016,2]
[404017187,1769727042468,-1267.82664481,0.00016,2]
[404017188,1769727042479,-10122.87061224,0.00016,2]
[404017189,1769727042518,-26451.12611032,0.00016,2]
[404017205,1769727044253,-151.0,0.00015483,2]
[404017206,1769727044263,-151.0,0.00015483,2]
[404017207,1769727044272,-353.979193,0.00016,2]
[404017208,1769727044283,-24029.43311997,0.00016,2]
[404017209,1769727044295,-1402.65568326,0.00016,2]
[404017210,1769727044306,-607.5216,0.00016,2]
[404017211,1769727044325,-632.28102123,0.00016,2]
[404017212,1769727044337,-1397.18855336,0.00016,2]
[404017213,1769727044349,-7972.52709534,0.00016,2]
[404017214,1769727044359,-254.40765,0.00016,2]
[404017215,1769727044370,-150.0,0.00016,2]
[404017216,1769727044380,-968.88,0.0001601,2]
[404017217,1769727044390,-164.57,0.00016011,2]
[404017218,1769727044400,-155.0,0.00016088,2]
[404017219,1769727044410,-500.0,0.00016089,2]
[404017220,1769727044421,-250.0,0.00016089,2]
[404017221,1769727044432,-500.0,0.00016089,2]
[404017222,1769727044442,-250.0,0.00016089,2]
[404017223,1769727044453,-500.0,0.00016089,2]
[404017224,1769727044464,-250.0,0.00016089,2]
[404017225,1769727044474,-500.0,0.00016089,2]
[404017226,1769727044483,-250.0,0.00016089,2]
[404017227,1769727044493,-322.6107,0.00016089,2]
[404017228,1769727044504,-250.0,0.00016089,2]
[404017229,1769727044515,-500.0,0.00016089,2]
[404017230,1769727044525,-250.0,0.00016089,2]
[404017231,1769727044534,-500.0,0.00016089,2]
[404017232,1769727044543,-721.12765535,0.00016089,2]
[404017233,1769727044552,-250.0,0.00016089,2]
[404017234,1769727044560,-500.0,0.00016089,2]
[404017235,1769727044569,-854.2589148,0.00016089,2]
[404017236,1769727044580,-250.0,0.00016089,2]
[404017237,1769727044591,-500.0,0.00016089,2]
[404017238,1769727044601,-250.0,0.00016089,2]
[404017239,1769727044610,-500.0,0.00016089,2]
[404017240,1769727044620,-250.0,0.00016089,2]
[404017241,1769727044630,-500.0,0.00016089,2]
[404017242,1769727044639,-500.0,0.00016089,2]
[404017243,1769727044650,-250.0,0.00016089,2]
[404017244,1769727044662,-500.0,0.00016089,2]
[404017245,1769727044672,-500.0,0.00016089,2]
[404017246,1769727044682,-500.0,0.00016089,2]
[404017247,1769727044694,-500.0,0.00016089,2]
[404017248,1769727044704,-500.0,0.00016089,2]
[404017249,1769727044714,-500.0,0.00016089,2]
[404017250,1769727044724,-500.0,0.00016089,2]
[404017251,1769727044735,-500.0,0.00016089,2]
[404017252,1769727044744,-500.0,0.00016089,2]
[404017253,1769727044756,-500.0,0.00016089,2]
[404017254,1769727044767,-500.0,0.00016089,2]
[404017255,1769727044776,-174.61919141,0.00016089,2]
[404017256,1769727044785,-578.20924308,0.00016089,2]
[404017257,1769727044794,-209.40437684,0.00016089,2]
[404017258,1769727044804,-121.52755031,0.00016089,2]
[404017259,1769727044818,-128.47244969,0.00016089,2]
[404017260,1769727044828,-186.3964503,0.00016089,2]
[404017261,1769727044839,-63.6035497,0.00016089,2]
[404017262,1769727044851,-250.0,0.00016089,2]
[404017263,1769727044860,-202.51299552,0.00016089,2]
[404017264,1769727044873,-47.48700448,0.00016089,2]
[404017265,1769727044883,-241.55639541,0.00016089,2]
[404017266,1769727044894,-8.44360459,0.00016089,2]
[404017267,1769727044904,-250.0,0.00016089,2]
[404017268,1769727044914,-190.36568188,0.00016089,2]
[404017272,1769727045237,-59.63431812,0.00016089,2]
[404017273,1769727045247,-250.0,0.00016089,2]
[404017274,1769727045257,-250.0,0.00016089,2]
[404017275,1769727045267,-250.0,0.00016089,2]
[404017276,1769727045276,-250.0,0.00016089,2]
[404017277,1769727045286,-209.40437684,0.00016089,2]
[404017278,1769727045295,-250.0,0.00016089,2]
[404017279,1769727045304,-250.0,0.00016089,2]
[404017280,1769727045313,-250.0,0.00016089,2]
[404017281,1769727045323,-250.0,0.00016089,2]
[404017282,1769727045333,-250.0,0.00016089,2]
[404017283,1769727045342,-250.0,0.00016089,2]
[404017284,1769727045351,-250.0,0.00016089,2]
[404017285,1769727045360,-1000.0,0.00016089,2]
[404017286,1769727045370,-1000.0,0.00016089,2]
[404017287,1769727045380,-500.0,0.00016089,2]
[404017288,1769727045390,-250.0,0.00016089,2]
[404017289,1769727045401,-1000.0,0.00016089,2]
[404017290,1769727045413,-500.0,0.00016089,2]
[404017291,1769727045424,-250.0,0.00016089,2]
[404017292,1769727045434,-1000.0,0.00016089,2]
[404017293,1769727045443,-500.0,0.00016089,2]
[404017294,1769727045452,-250.0,0.00016089,2]
[404017295,1769727045462,-1000.0,0.00016089,2]
[404017296,1769727045471,-500.0,0.00016089,2]
[404017297,1769727045480,-250.0,0.00016089,2]
[404017298,1769727045490,-1000.0,0.00016089,2]
[404017299,1769727045499,-500.0,0.00016089,2]
[404017300,1769727045508,-250.0,0.00016089,2]
[404017301,1769727045518,-1000.0,0.00016089,2]
[404017302,1769727045527,-500.0,0.00016089,2]
[404017303,1769727045536,-250.0,0.00016089,2]
[404017304,1769727045545,-1000.0,0.00016089,2]
[404017305,1769727045555,-500.0,0.00016089,2]
[404017306,1769727045564,-250.0,0.00016089,2]
[404017307,1769727045573,-1000.0,0.00016089,2]
[404017308,1769727045582,-500.0,0.00016089,2]
[404017309,1769727045592,-250.0,0.00016089,2]
[404017310,1769727045601,-1000.0,0.00016089,2]
[404017311,1769727045610,-500.0,0.00016089,2]
[404017312,1769727045619,-250.0,0.00016089,2]
[404017313,1769727045629,-1000.0,0.00016089,2]
[404017314,1769727045638,-500.0,0.00016089,2]
[404017315,1769727045647,-250.0,0.00016089,2]
[404017316,1769727045657,-500.0,0.00016089,2]
[404017317,1769727045666,-250.0,0.00016089,2]
[404017318,1769727045675,-878.43,0.00016089,2]
[404017319,1769727045684,-585.434506,0.00016116,2]
[404017320,1769727045694,-585.434506,0.00016116,2]
[404017321,1769727045703,-585.434506,0.00016116,2]
[404017322,1769727045712,-585.434506,0.00016116,2]
[404017323,1769727045721,-970.18,0.00016116,2]
[404017324,1769727045731,-216.20302182,0.00016121,2]
[404017325,1769727045740,-217.15233878,0.00016144,2]
[404017326,1769727045749,-1600.0,0.00016181,2]
[404017327,1769727045758,-1604.45514223,0.00016186,2]
[404017328,1769727045767,-225.18697532,0.00016199,2]
[404017329,1769727045777,-233.51889341,0.00016254,2]
[404017330,1769727045786,-172.36,0.00016279,2]
[404017331,1769727045795,-242.15909246,0.00016309,2]
[404017332,1769727045804,-433.0,0.0001632,2]
[404017333,1769727045814,-878.43,0.00016363,2]
[404017334,1769727045823,-251.11897888,0.00016364,2]
[404017335,1769727045832,-500.0,0.00016373,2]
[404017336,1769727045841,-500.0,0.00016373,2]
[404017337,1769727045850,-500.0,0.00016373,2]
[404017338,1769727045859,-500.61624054,0.00016373,2]
[404017339,1769727045869,-500.0,0.00016373,2]
[404017340,1769727045880,-447.99725278,0.00016373,2]
[404017341,1769727045891,-501.80313888,0.00016373,2]
[404017342,1769727045899,-500.0,0.00016373,2]
[404017343,1769727045909,-500.0,0.00016373,2]
[404017344,1769727045919,-500.0,0.00016373,2]
[404017345,1769727045928,-500.0,0.00016373,2]
[404017346,1769727045937,-500.0,0.00016373,2]
[404017348,1769727045946,-500.0,0.00016373,2]
[404017349,1769727045955,-500.0,0.00016373,2]
[404017350,1769727045965,-500.0,0.00016373,2]
[404017351,1769727045975,-345.01744062,0.00016373,2]
[404017354,1769727045984,-500.0,0.00016373,2]
[404017356,1769727045993,-500.0,0.00016373,2]
[404017358,1769727046005,-500.0,0.00016373,2]
[404017359,1769727046015,-500.0,0.00016373,2]
[404017360,1769727046026,-2832.0,0.000164,2]
[404017361,1769727046036,-175.04278857,0.000164,2]
[404017362,1769727046047,-260.4103811,0.00016419,2]
[404017363,1769727046057,-3240.0,0.00016428,2]
[404017364,1769727046069,-151.0,0.00016435,2]
[404017365,1769727046082,-500.0,0.00016437,2]
[404017366,1769727046093,-500.0,0.00016437,2]
[404017367,1769727046103,-500.0,0.00016437,2]
[404017368,1769727046115,-500.0,0.00016437,2]
[404017369,1769727046125,-500.0,0.00016437,2]
[404017370,1769727046134,-500.0,0.00016437,2]
[404017371,1769727046144,-500.0,0.00016437,2]
[404017372,1769727046154,-500.0,0.00016437,2]
[404017373,1769727046163,-500.0,0.00016437,2]
[404017374,1769727046172,-151.0,0.00016438,2]
[404017375,1769727046182,-151.0,0.00016438,2]
[404017376,1769727046191,-151.39577,0.00016438,2]
[404017377,1769727046201,-196.449178,0.00016438,2]
[404017378,1769727046210,-196.449178,0.00016438,2]
[404017379,1769727046220,-196.449178,0.00016438,2]
[404017380,1769727046229,-196.449178,0.00016438,2]
[404017381,1769727046238,-151.0,0.00016438,2]
[404017382,1769727046247,-214.57256,0.00016438,2]
[404017383,1769727046256,-151.0,0.00016438,2]
[404017384,1769727046265,-151.0,0.00016438,2]
[404017385,1769727046275,-151.0,0.00016438,2]
[404017386,1769727046284,-151.0,0.00016438,2]
[404017387,1769727046295,-151.0,0.00016438,2]
[404017388,1769727046305,-151.0,0.00016438,2]
[404017389,1769727046316,-151.0,0.00016438,2]
[404017390,1769727046325,-151.0,0.00016438,2]
[404017391,1769727046335,-742.50634286,0.00016438,2]
[404017392,1769727046344,-742.50634286,0.00016438,2]
[404017393,1769727046353,-742.50634286,0.00016438,2]
[404017394,1769727046363,-742.50634286,0.00016438,2]
[404017395,1769727046374,-742.50634286,0.00016438,2]
[404017396,1769727046385,-742.50634286,0.00016438,2]
[404017397,1769727046396,-742.50634286,0.00016438,2]
[404017398,1769727046406,-742.50634286,0.00016438,2]
[404017399,1769727046418,-742.50634286,0.00016438,2]
[404017400,1769727046429,-742.50634286,0.00016438,2]
[404017401,1769727046439,-742.50634286,0.00016438,2]
[404017402,1769727046449,-742.50634286,0.00016438,2]
[404017403,1769727046460,-742.50634286,0.00016438,2]
[404017404,1769727046470,-742.50634286,0.00016438,2]
[404017405,1769727046480,-742.50634286,0.00016438,2]
[404017406,1769727046493,-742.50634286,0.00016438,2]
[404017407,1769727046504,-742.50634286,0.00016438,2]
[404017408,1769727046514,-742.50634286,0.00016438,2]
[404017409,1769727046525,-742.50634286,0.00016438,2]
[404017410,1769727046534,-742.50634286,0.00016438,2]
[404017411,1769727046544,-742.50634286,0.00016438,2]
[404017412,1769727046554,-742.50634286,0.00016438,2]
[404017413,1769727046564,-742.50634286,0.00016438,2]
[404017414,1769727046574,-742.50634286,0.00016438,2]
[404017415,1769727046584,-742.50634286,0.00016438,2]
[404017416,1769727046594,-742.50634286,0.00016438,2]
[404017417,1769727046604,-742.50634286,0.00016438,2]
[404017418,1769727046615,-742.50634286,0.00016438,2]
[404017419,1769727046627,-742.50634286,0.00016438,2]
[404017420,1769727046638,-742.50634286,0.00016438,2]
[404017421,1769727046649,-742.50634286,0.00016438,2]
[404017422,1769727046659,-742.50634286,0.00016438,2]
[404017423,1769727046671,-742.50634286,0.00016438,2]
[404017424,1769727046683,-742.50634286,0.00016438,2]
[404017425,1769727046692,-742.50634286,0.00016438,2]
[404017426,1769727046702,-742.50634286,0.00016438,2]
[404017427,1769727046711,-742.50634286,0.00016438,2]
[404017428,1769727046721,-742.50634286,0.00016438,2]
[404017430,1769727046730,-742.50634286,0.00016438,2]
[404017432,1769727046739,-742.50634286,0.00016438,2]
[404017433,1769727046748,-742.50634286,0.00016438,2]
[404017434,1769727046757,-742.50634286,0.00016438,2]
[404017435,1769727046766,-742.50634286,0.00016438,2]
[404017436,1769727046776,-742.50634286,0.00016438,2]
[404017437,1769727046784,-742.50634286,0.00016438,2]
[404017438,1769727046794,-742.50634286,0.00016438,2]
[404017439,1769727046803,-742.50634286,0.00016438,2]
[404017440,1769727046812,-742.50634286,0.00016438,2]
[404017441,1769727046821,-742.50634286,0.00016438,2]
[404017442,1769727046830,-742.50634286,0.00016438,2]
[404017443,1769727046839,-742.50634286,0.00016438,2]
[404017444,1769727046848,-742.50634286,0.00016438,2]
[404017445,1769727046857,-742.50634286,0.00016438,2]
[404017446,1769727046867,-742.50634286,0.00016438,2]
[404017448,1769727046876,-742.50634286,0.00016438,2]
[404017449,1769727046885,-742.50634286,0.00016438,2]
[404017450,1769727046894,-742.50634286,0.00016438,2]
[404017451,1769727046903,-742.50634286,0.00016438,2]
[404017452,1769727046912,-742.50634286,0.00016438,2]
[404017453,1769727046922,-735.08127943,0.00016438,2]
[404017454,1769727046931,-735.08127943,0.00016438,2]
[404017455,1769727046941,-735.08127943,0.00016438,2]
[404017456,1769727046950,-735.08127943,0.00016438,2]
[404017457,1769727046959,-735.08127943,0.00016438,2]
[404017458,1769727046969,-735.08127943,0.00016438,2]
[404017459,1769727046978,-735.08127943,0.00016438,2]
[404017460,1769727046987,-735.08127943,0.00016438,2]
[404017461,1769727047269,-735.08127943,0.00016438,2]
[404017462,1769727047280,-735.08127943,0.00016438,2]
[404017463,1769727047290,-735.08127943,0.00016438,2]
[404017464,1769727047301,-735.08127943,0.00016438,2]
[404017465,1769727047310,-735.08127943,0.00016438,2]
[404017466,1769727047320,-735.08127943,0.00016438,2]
[404017467,1769727047330,-735.08127943,0.00016438,2]
[404017468,1769727047339,-735.08127943,0.00016438,2]
[404017469,1769727047348,-735.08127943,0.00016438,2]
[404017470,1769727047358,-735.08127943,0.00016438,2]
[404017471,1769727047367,-735.08127943,0.00016438,2]
[404017472,1769727047376,-735.08127943,0.00016438,2]
[404017473,1769727047385,-735.08127943,0.00016438,2]
[404017474,1769727047394,-735.08127943,0.00016438,2]
[404017475,1769727047403,-735.08127943,0.00016438,2]
[404017476,1769727047412,-735.08127943,0.00016438,2]
[404017477,1769727047422,-735.08127943,0.00016438,2]
[404017478,1769727047432,-735.08127943,0.00016438,2]
[404017479,1769727047441,-735.08127943,0.00016438,2]
[404017480,1769727047452,-735.08127943,0.00016438,2]
[404017481,1769727047461,-735.08127943,0.00016438,2]
[404017482,1769727047470,-735.08127943,0.00016438,2]
[404017483,1769727047480,-816.75697707,0.00016438,2]
[404017484,1769727047489,-154.881899,0.00016438,2]
[404017485,1769727047501,-154.881899,0.00016438,2]
[404017486,1769727047510,-154.881899,0.00016438,2]
[404017487,1769727047519,-154.881899,0.00016438,2]
[404017488,1769727047528,-227.11,0.00016438,2]
[404017489,1769727047538,-162.933668,0.00016438,2]
[404017490,1769727047548,-162.933668,0.00016438,2]
[404017491,1769727047557,-162.933668,0.00016438,2]
[404017492,1769727047566,-162.933668,0.00016438,2]
[404017493,1769727047575,-527.748874,0.00016438,2]
[404017494,1769727047584,-527.748874,0.00016438,2]
[404017495,1769727047594,-527.748874,0.00016438,2]
[404017496,1769727047602,-527.748874,0.00016438,2]
[404017497,1769727047611,-695.225747,0.00016438,2]
[404017498,1769727047620,-695.225747,0.00016438,2]
[404017499,1769727047629,-695.225747,0.00016438,2]
[404017500,1769727047638,-695.225747,0.00016438,2]
[404017501,1769727047647,-151.0,0.00016438,2]
[404017502,1769727047656,-151.0,0.00016438,2]
[404017503,1769727047666,-151.0,0.00016438,2]
[404017504,1769727047675,-165.31,0.0001644,2]
[404017505,1769727047684,-270.0455652,0.00016474,2]
[404017506,1769727047694,-280.03725112,0.00016529,2]
[404017507,1769727047703,-3068.0,0.00016577,2]
[404017508,1769727047713,-290.39862941,0.00016584,2]
[404017509,1769727047722,-885.86649465,0.00016637,2]
[404017510,1769727047731,-181.08010149,0.00016637,2]
[404017511,1769727047740,-217.15233878,0.00016637,2]
[404017512,1769727047750,-878.43,0.00016637,2]
[404017513,1769727047759,-301.1433787,0.00016639,2]
[404017514,1769727047768,-968.88,0.00016706,2]
[404017515,1769727047777,-1604.45514223,0.00016757,2]
[404017516,1769727047787,-164.57,0.00016774,2]
[404017517,1769727047796,-587.0,0.00016799,2]
[404017518,1769727047805,-1315.1678,0.00016859,2]
[404017519,1769727047814,-216.20302182,0.00016859,2]
[404017520,1769727047823,-175.04278857,0.000169,2]
[404017521,1769727047832,-1112.92083628,0.000169,2]
[404017522,1769727047841,-878.43,0.00016911,2]
[404017523,1769727047850,-1000.0,0.00016921,2]
[404017524,1769727047860,-942.4808492,0.00016921,2]
[404017525,1769727047869,-500.8130636,0.00016921,2]
[404017526,1769727047879,-500.0,0.00016921,2]
[404017527,1769727047888,-500.0,0.00016921,2]
[404017528,1769727047897,-1000.0,0.00016921,2]
[404017529,1769727047906,-2351.0,0.00016936,2]
[404017530,1769727047915,-151.0,0.00016956,2]
[404017531,1769727047925,-151.0,0.00016959,2]
[404017532,1769727047934,-151.0,0.00016959,2]
[404017533,1769727047943,-166.871788,0.00016959,3]
[404017534,1769727047953,-151.39577,0.00016959,2]
[404017535,1769727047963,-151.39577,0.00016959,2]
[404017536,1769727047972,-162.933668,0.00016959,2]
[404017537,1769727047981,-162.933668,0.00016959,2]
[404017538,1769727047990,-162.933668,0.00016959,2]
[404017539,1769727048002,-162.933668,0.00016959,2]
[404017540,1769727048012,-527.748874,0.00016959,2]
[404017541,1769727048022,-527.748874,0.00016959,2]
[404017542,1769727048031,-527.748874,0.00016959,2]
[404017543,1769727048041,-527.748874,0.00016959,2]
[404017544,1769727048050,-196.449178,0.00016959,2]
[404017545,1769727048059,-196.449178,0.00016959,2]
[404017546,1769727048069,-196.449178,0.00016959,2]
[404017547,1769727048080,-196.449178,0.00016959,2]